Cogmind - Beta 13 @@@ ROGUE MODE // 2024.04.04 @ 10:55:50 Player: BrainTooSmol Result: Destroyed by B-36 Bruiser with Hammer Performance ------------- Evolutions (2) 1000 Regions Visited (8) 1600 Robots Destroyed (72) 360 Value Destroyed (2094) 2094 Prototype IDs (3) 60 Alien Tech Used (0) 0 Bonus (186) 186 TOTAL SCORE: 5300 Bonus ------- High Alert Combat Kills 33 Follower Combat Kills 153 Cogmind --------- Core Integrity 0/550 Matter 54/300 Energy 100/100 System Corruption 3% Temperature Cool (0) Movement Core (350) Ox6 Location -8/Storage Parts ------- > --- POWER (1) -------- (None) > --- PROPULSION (4) --- (None) > --- UTILITY (2) ------ Large Storage Unit > --- WEAPON (4) ------- Mini Grenade Launcher > --- INVENTORY (15) --- Small Storage Unit Targeting Computer Light Armor Plating Hardened Light Armor Plating Datajack Flail Peak State ------------ > --- POWER ------------ Light Deuterium Engine > --- PROPULSION ------- Light Treads Light Treads Light Treads Light Treads > --- UTILITY ---------- Large Storage Unit Sensor Array > --- WEAPON ----------- Advanced Beam Cannon Heavy Assault Rifle Heavy Assault Rifle Gauss Rifle > --- INVENTORY -------- Light Deuterium Engine Light Treads Small Storage Unit Targeting Computer Light Armor Plating Hardened Light Armor Plating Grenade Launcher Mini Grenade Launcher Mini Grenade Launcher Datajack [Rating: 21] Favorites ----------- Power Improved Ion Engine Engine Improved Ion Engine Power Core Light Nuclear Core Propulsion Light Treads Treads Light Treads Wheel Compact Wheel Utility Large Storage Unit Device Sensor Array Storage Large Storage Unit Weapon Light Cannon Energy Cannon Advanced Beam Cannon Ballistic Gun Heavy Assault Rifle Ballistic Cannon Light Cannon Launcher Mini Grenade Launcher Special Weapon Mining Laser Build | -11 -10 -10 -9 -9 -9 -8 -8 -8 ------- Run | Yrd Mat Min Mat Min Exi Min Mat Sto Slots Evolved 4 | . . . 2 . . . 2 . Power . | . . . . . . . . . Propulsion 2 | . . . 2 . . . . . Utility . | . . . . . . . . . Weapon 2 | . . . . . . . 2 . Parts Attached 48 | 8 10 2 8 1 . . 9 10 Power 6 | 1 1 . 1 . . . 1 2 Engine 5 | 1 . . 1 . . . 1 2 Core 1 | . 1 . . . . . . . Reactor . | . . . . . . . . . Propulsion 17 | 4 4 . 3 1 . . 3 2 Treads 15 | 2 4 . 3 1 . . 3 2 Leg . | . . . . . . . . . Wheel 2 | 2 . . . . . . . . Hover . | . . . . . . . . . Flight . | . . . . . . . . . Utility 3 | 1 2 . . . . . . . Device 1 | . 1 . . . . . . . Storage 2 | 1 1 . . . . . . . Processor . | . . . . . . . . . Hackware . | . . . . . . . . . Protection . | . . . . . . . . . Artifact . | . . . . . . . . . Weapon 22 | 2 3 2 4 . . . 5 6 Energy Gun . | . . . . . . . . . Energy Cannon 1 | . . . . . . . 1 . Ballistic Gun 10 | 2 1 . . . . . 4 3 Ballistic Cannon 5 | . 2 1 2 . . . . . Launcher 4 | . . 1 . . . . . 3 Special Weapon 2 | . . . 2 . . . . . Impact Weapon . | . . . . . . . . . Slashing Weapon . | . . . . . . . . . Piercing Weapon . | . . . . . . . . . Special Melee Weapon . | . . . . . . . . . Unidentified Prototypes 3 | . . . . . . . 1 2 Parts Lost 23 | . . . . . . . 9 14 Power 2 | . . . . . . . 1 1 Propulsion 9 | . . . . . . . 4 5 Utility 1 | . . . . . . . . 1 Weapon 11 | . . . . . . . 4 7 Highest Loss Streak 6 | . . . . . . . 4 6 To Critical Strikes 2 | . . . . . . . . 2 Average Slot Usage (%) 98 | . 97 100 99 100 100 100 98 62 Engine 8 | . 5 . 6 11 11 11 9 3 Core 2 | . 8 14 4 . . . . . Treads 39 | . 28 28 43 44 44 44 35 19 Device 10 | . 11 14 11 11 11 11 9 5 Storage 11 | . 14 14 11 11 11 11 9 9 Ballistic Gun 6 | . 23 . . . . . 20 11 Ballistic Cannon 17 | . 4 27 20 22 22 22 12 . Naked Turns . | . . . . . . . . . Heaviest Build 40 | 11 32 32 34 34 34 34 40 37 Greatest Support 80 | 40 40 40 80 80 80 80 80 80 Greatest Overweight (x) 8 | 2 1 . . . . . . 8 Average Overweight (x) . | . . . . . . . . . Largest Inventory Capacity 15 | 8 15 15 15 15 15 15 15 15 Average Capacity 14 | 7 13 15 15 15 15 15 15 15 Most Carried 15 | 1 13 13 15 15 15 15 14 10 Average Carried 12 | . 3 13 13 14 15 14 12 8 Final Capacity 15 | 8 15 15 15 15 15 15 15 15 Final Carried 15 | 1 13 13 15 15 15 15 11 6 Class Distribution -------------------- 86% | Mutant 11% | Skirmisher Dominant Class ---------------- Mutant | -10/Materials Mutant | -10/Mines Mutant | -9/Materials Mutant | -9/Mines Mutant | -9/Exiles Mutant | -8/Mines Skirmisher | -8/Materials Gunner | -8/Storage Resources | -11 -10 -10 -9 -9 -9 -8 -8 -8 ----------- Run | Yrd Mat Min Mat Min Exi Min Mat Sto Matter Collected 1571 | 227 226 22 310 40 . 72 614 60 Remotely . | . . . . . . . . . Salvage Created 2064 | . 286 16 339 85 . 84 688 566 Parts 138 | . 26 1 20 5 . 6 40 40 Haulers Intercepted 3 | . . . . . . . 2 1 Recyclers Shooed 2 | . . . . 1 . . 1 . Parts Field Recycled . | . . . . . . . . . Retrieved Matter . | . . . . . . . . . Parts Self-Destructed . | . . . . . . . . . Prevented . | . . . . . . . . . Kills | -11 -10 -10 -9 -9 -9 -8 -8 -8 ------- Run | Yrd Mat Min Mat Min Exi Min Mat Sto Combat Hostiles Destroyed 56 | . 8 2 11 2 . 4 12 17 Guns 17 | . 8 . . . . . 7 2 Cannons 23 | . . . 11 2 . 4 5 1 AOE 16 | . . 2 . . . . . 14 Classes Destroyed 12 | . 3 . 4 1 . 1 3 . Worker 2 | . . . 1 . . . . 1 Builder 3 | . . . 1 . . . . 2 Hauler 3 | . . . . . . . 2 1 Recycler 3 | . . . 1 . . . 1 1 Mechanic 1 | . . . . . . . 1 . Watcher 4 | . 3 . . . . . 1 . Swarmer 16 | . 3 2 5 . . 3 . 3 Grunt 29 | . 5 . 4 1 . . 9 10 Brawler 2 | . . . . 1 . . 1 . Duelist 2 | . . . . . . . 1 1 Sentry 5 | . . . 2 . . . . 3 Hunter 2 | . . . . . . 1 1 . Best Kill Streak 16 | . 3 2 5 2 . 2 5 16 Combat Bots Only 10 | . 3 2 4 2 . 2 4 10 Max Kills in Single Turn 5 | . 1 2 1 1 . 1 2 5 Gunslinging . | . . . . . . . . . Exploded 5 | . . 2 . . . . . 5 Melee . | . . . . . . . . . Uniques/NPCs Destroyed . | . . . . . . . . . Combat | -11 -10 -10 -9 -9 -9 -8 -8 -8 -------- Run | Yrd Mat Min Mat Min Exi Min Mat Sto Hostile Shots Fired 294 | . 26 3 31 1 . 13 107 113 Missed 71 | . 6 2 7 . . 2 26 28 Damage Taken 3538 | . 203 9 263 12 . 153 1286 1612 Core 606 | . . . 8 . . 41 66 491 Absorbed by Shields . | . . . . . . . . . Regen/Repaired (Parts) 193 | . . . 193 . . . . . Core Remaining (%) 95 | 100 . 100 . . . 87 . . Volleys Fired 143 | . 25 1 27 4 2 7 44 33 Largest 4 | . 2 1 2 2 2 2 4 4 Hottest 143 | . 55 30 100 70 70 70 142 143 Shots Fired 360 | . 50 1 51 8 4 14 165 67 Gun 174 | . 49 . . . . . 98 27 Cannon 161 | . 1 . 48 8 4 14 67 19 Launcher 22 | . . 1 . . . . . 21 Special 3 | . . . 3 . . . . . Kinetic 311 | . 50 . 48 8 4 14 160 27 Thermal 27 | . . . 3 . . . 5 19 Explosive 22 | . . 1 . . . . . 21 Electromagnetic . | . . . . . . . . . Robot Hit Streak 13 | . 8 . 13 5 . 6 12 7 Robot Miss Streak 4 | . 2 . 3 2 . 2 4 4 Penetration Max 1 | . . . . . . . . 1 Secondary Targets . | . . . . . . . . . Shots Hit Robots 209 | . 33 . 32 5 . 7 93 39 Core Hits 119 | . 15 2 14 2 . 5 34 47 Critical Kills . | . . . . . . . . . Critical Parts Destroyed . | . . . . . . . . . Critical Strikes 4 | . . . 2 . . . 2 . Blast 4 | . . . 2 . . . 2 . Melee Attacks . | . . . . . . . . . Impact . | . . . . . . . . . Slashing . | . . . . . . . . . Piercing . | . . . . . . . . . Sneak Attacks . | . . . . . . . . . Combat Hostiles . | . . . . . . . . . Follow-up Attacks . | . . . . . . . . . Damage Inflicted 4683 | . 375 87 563 86 . 108 1427 2037 Guns 1488 | . 356 . . . . . 852 280 Cannons 1589 | . 19 . 563 85 . 108 566 248 Explosions 1588 | . . 87 . . . . . 1501 Melee . | . . . . . . . . . Ramming 18 | . . . . 1 . . 9 8 Kinetic 2787 | . 375 . 563 85 . 108 1376 280 Thermal 290 | . . . . . . . 42 248 Explosive 1588 | . . 87 . . . . . 1501 Electromagnetic . | . . . . . . . . . Impact . | . . . . . . . . . Slashing . | . . . . . . . . . Piercing . | . . . . . . . . . Highest Corruption 3 | . . . . . . . . 3 Average Corruption 3 | . . . . . . . . 3 Corruption Purged . | . . . . . . . . . Corruption Blocked . | . . . . . . . . . Overload Shots . | . . . . . . . . . Overflow Damage 23 | . . . . . . . . 23 Projectiles . | . . . . . . . . . Explosions 23 | . . . . . . . . 23 Melee . | . . . . . . . . . Knockbacks 14 | . . . 3 1 . 1 9 . Impact . | . . . . . . . . . Kinetic 13 | . . . 3 1 . 1 8 . Secondary 1 | . . . . . . . 1 . Self-Inflicted Damage 192 | . . . . . . . . 192 Shots 6 | . . . . . . . . 6 Rammed 3 | . . . . 1 . . 1 1 Targets Rammed 4 | . . . . 1 . . 1 2 Kicked . | . . . . . . . . . Crushed 1 | . . . . . . . . 1 Highest Temperature 376 | . 12 . 36 3 6 6 376 329 Average Temperature 86 | . 6 . 11 2 3 2 121 121 Received Heat Transfer 1479 | . 66 . 57 6 . . 684 666 Siege Activations . | . . . . . . . . . Robots Corrupted . | . . . . . . . . . Combat Hostiles . | . . . . . . . . . Parts Fried . | . . . . . . . . . Impact Corruptions . | . . . . . . . . . Robots Melted . | . . . . . . . . . Combat Hostiles . | . . . . . . . . . Parts Melted 1 | . . . . . . 1 . . Heat Transferred 518 | . . . . . . . 74 444 Parts Sabotaged . | . . . . . . . . . Parts Stolen . | . . . . . . . . . Parts Stripped . | . . . . . . . . . Power Chain Reactions . | . . . . . . . . . Alert | -11 -10 -10 -9 -9 -9 -8 -8 -8 ------- Run | Yrd Mat Min Mat Min Exi Min Mat Sto Peak Influence 439 | . 192 76 193 122 . 113 194 439 Initial 52 | . . . 21 52 . . 27 44 Average 62 | . 45 67 54 74 . 41 88 260 Maximum Alert Level 2 | . . . . . . . . 2 Low Security (%) 97 | 100 100 100 100 100 . 100 100 35 Level 1 1 | . . . . . . . . 49 Level 2 . | . . . . . . . . 14 Level 3 . | . . . . . . . . . Level 4 . | . . . . . . . . . Level 5 . | . . . . . . . . . High Security . | . . . . . . . . . Max Security . | . . . . . . . . . Squads Dispatched 9 | . 1 . 2 1 . . 2 3 Investigation 4 | . 1 . 1 . . . 1 1 Extermination . | . . . . . . . . . Reinforcement 2 | . . . 1 . . . 1 . Assault 1 | . . . . 1 . . . . Garrison 2 | . . . . . . . . 2 Intercept . | . . . . . . . . . Searches Triggered . | . . . . . . . . . Construction Impeded . | . . . . . . . . . Haulers Reinforced . | . . . . . . . . . Active Scanning Responses . | . . . . . . . . . Cargo Convoy Interrupts . | . . . . . . . . . Stealth | -11 -10 -10 -9 -9 -9 -8 -8 -8 --------- Run | Yrd Mat Min Mat Min Exi Min Mat Sto Distress Signals 2 | . . . . . . . 2 . Communications Jammed . | . . . . . . . . . Distress Signals . | . . . . . . . . . Times Spotted 80 | . 13 3 12 2 . 9 22 19 Peak Tracking Total 9 | . 3 3 5 2 . 4 9 9 Tactical Retreats 1 | . . . 1 . . . . . Traps | -11 -10 -10 -9 -9 -9 -8 -8 -8 ------- Run | Yrd Mat Min Mat Min Exi Min Mat Sto Traps Triggered 3 | . 1 . . . . . 1 1 Indirectly . | . . . . . . . . . Trap Hack Attempts . | . . . . . . . . . Triggered . | . . . . . . . . . Disarmed . | . . . . . . . . . Reprogrammed . | . . . . . . . . . Reused . | . . . . . . . . . Traps Extracted . | . . . . . . . . . Installed . | . . . . . . . . . Triggered . | . . . . . . . . . Machines | -11 -10 -10 -9 -9 -9 -8 -8 -8 ---------- Run | Yrd Mat Min Mat Min Exi Min Mat Sto Machines Disabled 6 | . . . . . . 2 1 3 Max in Single Turn 1 | . . . . . . 1 1 1 Machines Repaired . | . . . . . . . . . Machines Dismantled . | . . . . . . . . . Machines Sabotaged . | . . . . . . . . . Overloaded Fab Kills . | . . . . . . . . . Hacking | -11 -10 -10 -9 -9 -9 -8 -8 -8 --------- Run | Yrd Mat Min Mat Min Exi Min Mat Sto Machines Accessed 12 | . 4 . 3 1 4 . . . Terminals 3 | . 1 . 1 1 . . . . Fabricators . | . . . . . . . . . Repair Stations 3 | . 1 . 2 . . . . . Recycling Units 2 | . 2 . . . . . . . Scanalyzers . | . . . . . . . . . Garrison Access . | . . . . . . . . . Total Hacks 53 | . 10 . 8 4 31 . . . Successful 42 | . 4 . 5 2 31 . . . Failed 10 | . 6 . 3 1 . . . . Catastrophic 4 | . 2 . 1 1 . . . . Database Lockouts 1 | . . . . 1 . . . . Manual 12 | . 4 . 3 4 1 . . . Terminals 12 | . 4 . 4 4 . . . . Fabricators . | . . . . . . . . . Repair Stations 5 | . 1 . 4 . . . . . Recycling Units 5 | . 5 . . . . . . . Scanalyzers . | . . . . . . . . . Garrison Access . | . . . . . . . . . Terminal Hacks 35 | . 1 . 1 2 31 . . . Record 31 | . . . . . 31 . . . Part Schematic 2 | . . . . 2 . . . . Hauler Manifests 1 | . . . 1 . . . . . Registered Components 1 | . 1 . . . . . . . Fabricator Hacks . | . . . . . . . . . Repair Station Hacks 4 | . . . 4 . . . . . Scan Component 2 | . . . 2 . . . . . Repair 2 | . . . 2 . . . . . Recycling Unit Hacks 2 | . 2 . . . . . . . Report Inventory 2 | . 2 . . . . . . . Scanalyzer . | . . . . . . . . . Garrison Access Hacks . | . . . . . . . . . Unauthorized Hacks 1 | . 1 . . . . . . . Terminals . | . . . . . . . . . Fabricators . | . . . . . . . . . Repair Stations . | . . . . . . . . . Recycling Units 1 | . 1 . . . . . . . Reject 1 | . 1 . . . . . . . Scanalyzers . | . . . . . . . . . Garrison Access . | . . . . . . . . . Data Cores Recovered . | . . . . . . . . . Used . | . . . . . . . . . Hacking Detections 7 | . 4 . 2 1 . . . . Full Trace Events 2 | . 1 . 1 . . . . . Feedback Events . | . . . . . . . . . Feedback Blocked . | . . . . . . . . . Robot Schematics Acquired . | . . . . . . . . . Robots Built . | . . . . . . . . . Authchips . | . . . . . . . . . Time . | . . . . . . . . . Total Robot Build Rating . | . . . . . . . . . Part Schematics Acquired 2 | . . . . 2 . . . . Parts Built . | . . . . . . . . . Authchips . | . . . . . . . . . Time . | . . . . . . . . . Total Part Build Rating . | . . . . . . . . . Parts Repaired 2 | . . . 2 . . . . . Time 52 | . . . 52 . . . . . Parts Recycled . | . . . . . . . . . Recycled Matter . | . . . . . . . . . Retrieved Matter . | . . . . . . . . . Retrieved Components . | . . . . . . . . . Parts Scanalyzed . | . . . . . . . . . Part Schematics Acquired . | . . . . . . . . . Parts Damaged . | . . . . . . . . . Bothacking | -11 -10 -10 -9 -9 -9 -8 -8 -8 ------------ Run | Yrd Mat Min Mat Min Exi Min Mat Sto Used RIF Installer . | . . . . . . . . . Robots Hacked . | . . . . . . . . . Non-combat . | . . . . . . . . . Combat . | . . . . . . . . . Robot Hacks Applied . | . . . . . . . . . Relay Couplers Released . | . . . . . . . . . Fabnet Peak Effective % . | . . . . . . . . . Robots Rewired . | . . . . . . . . . Allies Hacked . | . . . . . . . . . Hacks Repelled . | . . . . . . . . . Allies | -11 -10 -10 -9 -9 -9 -8 -8 -8 -------- Run | Yrd Mat Min Mat Min Exi Min Mat Sto Total Allies 5 | . . 1 . 4 . . . . Largest Group 4 | . . 1 . 4 4 4 1 . Highest-Rated Group 71 | . . 31 . 71 71 71 8 . Highest-Rated Ally 31 | . . 31 . 31 31 31 8 . Total Orders . | . . . . . . . . . Ally Attacks 35 | . . 2 . 9 3 18 3 . Total Damage 389 | . . 42 . 67 61 196 23 . Kills 9 | . . 2 . . 2 5 . . Allies Corrupted . | . . . . . . . . . Allies Melted . | . . . . . . . . . Intel | -11 -10 -10 -9 -9 -9 -8 -8 -8 ------- Run | Yrd Mat Min Mat Min Exi Min Mat Sto Robot Analysis Total . | . . . . . . . . . Derelict Logs Recovered 1 | . . . . 1 . . . . Drone Launches . | . . . . . . . . . Drone Recoveries . | . . . . . . . . . Exploration | -11 -10 -10 -9 -9 -9 -8 -8 -8 ------------- Run | Yrd Mat Min Mat Min Exi Min Mat Sto Turns Passed 5771 | 89 938 184 1054 349 965 1374 628 190 Spaces Moved 2633 | 56 416 112 387 204 600 577 237 44 Core 4 | 3 . . . . . . . 1 Treads 2609 | 33 416 112 387 204 600 577 237 43 Legs . | . . . . . . . . . Wheels 20 | 20 . . . . . . . . Hover . | . . . . . . . . . Flight . | . . . . . . . . . Fastest Speed 50 | 50 160 160 160 160 160 160 160 160 Average Speed 159 | 134 160 160 160 160 160 160 160 188 Slowest Speed 450 | 160 240 160 160 160 160 160 160 450 Overloaded Moves . | . . . . . . . . . Propulsion Burnouts . | . . . . . . . . . Robots Hopped . | . . . . . . . . . Cave-ins Triggered . | . . . . . . . . . Exploration Rate (%) 44 | 4 55 44 31 43 93 96 21 9 Regions Visited 8 Branch Regions 5 Pre-discovered Areas 2 | . . 1 . . 1 . . . Known Exits Taken 1 | . . . . . . . 1 . Unknown Exits Taken 7 | 1 1 1 1 1 1 1 . . Scrap Searched 3 | . . . . 1 . 2 . . Spaces Dug 3 | . . . 3 . . . . . Terrain Destroyed 131 | . . 11 3 . . . 1 116 Melee . | . . . . . . . . . Projectile 6 | . . . 3 . . . 1 2 AOE 125 | . . 11 . . . . . 114 Terrain Rammed . | . . . . . . . . . Walls Destroyed . | . . . . . . . . . Machines Disabled . | . . . . . . . . . Actions | -11 -10 -10 -9 -9 -9 -8 -8 -8 --------- Run | Yrd Mat Min Mat Min Exi Min Mat Sto Total 3897 | 67 640 115 763 219 601 1014 379 99 Wait 1038 | . 175 1 333 7 . 429 85 8 Move 2625 | 55 415 111 386 203 599 576 236 44 Hop . | . . . . . . . . . Pick Up 26 | 2 11 . 7 1 . 1 3 1 Fast Attach 19 | 7 5 . 1 . . . 2 4 Attach 17 | 1 . . 3 . . . 7 6 Detach . | . . . . . . . . . Swap 12 | . 5 2 4 1 . . . . Drop 13 | 2 4 . 2 2 . 1 1 1 Fire 143 | . 25 1 27 4 2 7 44 33 Melee . | . . . . . . . . . Ram . | . . . . . . . . . Kick . | . . . . . . . . . Crush 4 | . . . . 1 . . 1 2 Escape Stasis . | . . . . . . . . . Rewire . | . . . . . . . . . Trap . | . . . . . . . . . Miscellaneous . | . . . . . . . . . Route ------- -11/Scrapyard -10/Materials (discovered 2 exits: *Mat / [*Min]) -10/Mines -9/Materials (discovered 2 exits: [*Mat] / *Min) -9/Mines -9/Exiles (discovered 2 exits: [*Min x2]) -8/Mines (discovered 2 exits: [*Mat x2]) -8/Materials (discovered 2 exits: Fac / *Sto) -8/Storage History --------- Turn | Location | Event 7 | -11/Scrapyard | Discovered new exit (range 16) 90 | -11/Scrapyard | Entered Materials 324 | -10/Materials | Build established: Mutant 707 | -10/Materials | Discovered new exit (range 6) 915 | -10/Materials | Discovered new exit (range 7) 1028 | -10/Materials | Entered Mines 1031 | -10/Mines | Escorted by a lone wolf Derelict 1051 | -10/Mines | Learned location of Storage (-8) 1130 | -10/Mines | Assembled infested the area 1135 | -10/Mines | Assisted by a Guerilla fighting off Assembled 1193 | -10/Mines | Discovered new exit (range 15) 1212 | -10/Mines | Entered Materials 1212 | -9/Materials | Evolved 2 slots: Propulsion x2 1385 | -9/Materials | Repaired Lgt. Treads 1653 | -9/Materials | Repaired Lgt. Treads 1874 | -9/Materials | Discovered new exit (range 16) 2100 | -9/Materials | Discovered new exit (range 12) 2266 | -9/Materials | Entered Mines 2284 | -9/Mines | Central database locked down 2341 | -9/Mines | Assisted by bots powering up and referring to "LRC-V3" 2364 | -9/Mines | Learned 4 Materials zone layouts 2370 | -9/Mines | Met a Derelict testing a Signal Generator 2603 | -9/Mines | Deemed a non-threat by the Exiles lab entrance 2603 | -9/Mines | Discovered new exit (range 5) 2615 | -9/Mines | Entered Exiles 2615 | -9/Exiles | Found Exiles lab destroyed 2615 | -9/Exiles | Accompanied by 4 allies 3071 | -9/Exiles | Learned location of Zion (-6) 3158 | -9/Exiles | Discovered new exit (range 14) 3562 | -9/Exiles | Discovered new exit (range 14) 3580 | -9/Exiles | Entered Mines 3580 | -8/Mines | Accompanied by 4 allies 4170 | -8/Mines | Discovered new exit (range 6) 4548 | -8/Mines | Lost 3 allies 4866 | -8/Mines | Discovered new exit (range 10) 4954 | -8/Mines | Entered Materials 4954 | -8/Materials | Accompanied by 1 ally 4954 | -8/Materials | Evolved 2 slots: Weapon x2 4955 | -8/Materials | Identified exit to Storage 4955 | -8/Materials | Identified exit to Factory 5249 | -8/Materials | Build established: Skirmisher 5432 | -8/Materials | Lost 4 parts (1n3w) 5582 | -8/Materials | Entered Storage 5612 | -8/Storage | Lost 3 parts (1p1n1w) 5646 | -8/Storage | Garrison activated, responded to threat 5686 | -8/Storage | Lost 6 parts (1p3n2w) 5688 | -8/Storage | Destroyed 10 combat bots 5757 | -8/Storage | Core integrity fell below 50% 5766 | -8/Storage | Core integrity fell below 20% 5772 | -8/Storage | Destroyed by B-36 Bruiser with Hammer Last Messages --------------- 05746_ L-31 Rogue emerges from the garrison. 05747_ Critical hit (Burn: +37). 05748_ U-05 Engineer destroyed. 05749_ Lgt. Treads destroyed. 05751_ Enh. Autogun severed. 05756_ Lgt. Assault Rifle destroyed. 05756_ Adv. Beam Cannon destroyed. 05758_ L-31 Rogue destroyed. 05758_ Critical hit (Smash). 05758_ Mni. Grenade Launcher destroyed. 05758_ System corrupted by crushing effect (+3). 05761_ Knocked back. 05763_ The unstable cave ceiling collapses. 05765_ Grenade Launcher destroyed. 05765_ Destroyed Grenade Launcher. 05765_ Knocked back. 05768_ The unstable cave ceiling collapses. 05768_ Door Terminal disabled. 05770_ The unstable cave ceiling collapses. 05770_ G-47 Trooper destroyed. Map ----- +----------------------------------------------------+ | ???????????????????????????????? | | ???????????????????????????????? | | ???????????????????????????????? | | ???????????????????????????????? | | ???????????????????????????????? | | ???????????????????????????????? | | ???????????????????????????????? | | ??????????????????????? ?????? | | ????????????????????? # #????? | | ???????????????????? # #????? | | ???????????????????? ##???? | | ????????????????????# % ##?? | | ????????????????????# ! #?? | | ???????????????????## ??? | | ??????????????????#? ??? | | ???????????????????! [ ??? | | ??????????????????? " % ??? | | ???????????????????? #??? | | ????????????????????# #??? | | ???????????????###### ???? | | ???????????????# " # = ##??? | | ?????????????###"G" #??? | | ????????????## " " [ #??? | | ????????????# g #??? | | ????????? #### #??? | | ????????? + =@ #??? | | ????????????# *| b! #??? | | ????????????## = #??? | | ?????????????# " #??? | | ?????????????# # #??? | | ?????????????# " ##??? | | ?????????????# ##???? | | ?????????????### #????? | | ???????????????### #????? | | ?????????????????# # #????? | | ?????????????????###### #????? | | ??????????????????????# #????? | | ??????????????????????# #????? | | ??????????????????????# #????? | | ??????????????????????# #????? | | ??????????????????????# #????? | | ??????????????????????#####????? | | ???????????????????????????????? | | ???????????????????????????????? | | ???????????????????????????????? | | ???????????????????????????????? | | ???????????????????????????????? | | ???????????????????????????????? | | ???????????????????????????????? | | ???????????????????????????????? | +----------------------------------------------------+ Best States ------------- Heat Dissipation 31 Energy Generation 14 Energy Capacity 265 Matter Stores 300 Matter Capacity 300 Sight Range 16 Robot Scan Range 14 Terrain Scan Density 10 Evasion (%) 40 Recoil Reduction 4 Item Schematics ----------------- Lgt. Cannon | -9/Mines | Hacked Lgt. Treads | -9/Mines | Hacked Robot Schematics ------------------ None Fabricated ------------ Nothing Alien Tech Used ----------------- None Achievements -------------- Please Form A Line Challenges ------------ None Game ------ Seed DimensionalTitaniumScrap Manual? 0 Play Time 00:40:16 Cumulative 22.5 hours Start 2024.04.04 @ 10:17:34 End 2024.04.04 @ 10:55:50 Sessions 1 Manual Loads 0 Difficulty Rogue Special Mode None Game No. 16 Rogue 16 Adventurer 0 Explorer 0 Win Type - Total 1 Types 1/0/0/0/0/0/0/0/0 Lore% 24 Gallery% 24 Achievement% 26 Wizard Run 0 Options --------- Layout 0 ASCII 0 Keyboard 0 Movement Mouse Keybinds 0 Fullscreen 1 Font 18/SmallcapsGlow Map View 76x50 Zoom Use 0% Tactical HUD 1 Map Filters NONE Filters NONE Steam 1 RUN: 5ad00cbd-52db-4732-a76c-7283901dc8aa